bitfinex/quotes_ETHUSD_20240707
["timestamp","ask_amount","ask_price","bid_price","bid_amount"]
[1720394984566,0.35466626,2951.5,2951.2,0.55]
[1720394985572,3.93816626,2951.5,2951.2,0.55]
[1720394985777,0.35466626,2951.5,2951.2,0.55]
[1720394987086,0.35466626,2951.5,2951.3,0.06776056]
[1720394987281,0.35466626,2951.5,2951.4,0.55]
[1720394987905,0.35466626,2951.5,2951.1,2.313]
[1720394987906,0.35466626,2951.5,2951.2,0.55]
[1720394988111,0.35466626,2951.5,2951.3,0.2863]
[1720394988273,0.35466626,2951.5,2951.4,0.55]
[1720394990234,0.35466626,2951.5,2951.2,0.55]
[1720394994635,1.31757741,2951.8,2951.2,0.55]
[1720394994841,3.5835,2951.9,2951.2,0.55]
[1720394995414,1.31761954,2951.8,2951.2,0.55]
[1720394995740,3.5835,2951.9,2951.2,0.55]
[1720394996044,3.5835,2951.9,2951.2,0.8363]
[1720394996210,1.31759437,2951.8,2951.2,0.8363]
[1720394996666,3.5835,2951.9,2951.2,0.8363]
[1720394997142,1.31759631,2951.8,2951.2,0.8363]
[1720394997344,1.31759631,2951.8,2951.2,0.55]
[1720394998140,3.5835,2951.9,2951.2,0.55]
[1720394998447,1.31757491,2951.8,2951.2,0.55]
[1720395001042,1.31758596,2951.8,2951.3,0.06775896]
[1720395001209,1.31758596,2951.8,2951.4,0.55]
[1720395001923,1.31758596,2951.8,2951.2,0.55]
[1720395002611,1.31758596,2952.1,2951.3,0.06775902]
[1720395002807,1.31758596,2952.1,2951.7,0.964]
[1720395003409,1.31758596,2952.1,2951.2,0.55]
[1720395003656,3.722,2952.0,2951.0,4.68938225]
[1720395003858,1.31758596,2951.9,2951.7,0.964]
[1720395004167,1.31724169,2951.9,2951.7,0.964]
[1720395004367,3.722,2952.0,2951.7,0.964]
[1720395004531,1.67174139,2951.9,2951.7,0.964]
[1720395004859,0.35469052,2951.9,2951.7,0.964]
[1720395005210,1.67158443,2951.9,2951.5,0.964]
[1720395005518,0.35469052,2951.9,2951.5,0.964]
[1720395005827,1.67150289,2951.9,2951.5,0.964]
[1720395006352,1.67150289,2951.9,2951.7,0.964]
[1720395006955,0.35469052,2951.9,2951.8,0.55]
[1720395009055,0.35469052,2951.9,2951.8,5.356]
[1720395009352,0.35469052,2951.9,2951.8,5.8916]
[1720395011425,1.31751442,2952.9,2951.9,0.34]
[1720395011729,3.6828,2953.3,2952.8,0.964]
[1720395011928,1.31778572,2953.2,2952.5,4.75710833]
[1720395012130,2.47144307,2953.8,2953.2,0.964]
[1720395012361,4.88742261,2953.7,2953.4,0.964]
[1720395012530,3.5528,2953.5,2952.5,4.68938225]
[1720395012719,1.31782261,2953.4,2952.6,0.55]
[1720395012917,3.5528,2953.3,2952.6,0.55]
[1720395013219,4.91939213,2953.9,2952.5,4.68938225]
[1720395013220,3.5528,2953.1,2952.5,4.68938225]
[1720395013418,10.16926568,2953.2,2952.5,4.68938225]
[1720395013419,3.8606,2952.8,2952.5,4.68938225]
[1720395013643,1.31757984,2952.7,2951.8,2.313]
[1720395013851,1.31757984,2952.7,2951.8,3.01323823]
[1720395013852,1.31757303,2952.7,2951.8,3.01323823]
[1720395014164,3.8606,2952.8,2951.8,3.01323823]
[1720395014468,1.31753969,2952.7,2951.8,3.01323823]
[1720395014761,1.31753969,2952.7,2951.7,4.68938225]
[1720395014762,3.5405,2952.6,2951.7,4.68938225]
[1720395014920,3.5405,2952.4,2951.7,4.68938225]
[1720395015130,0.35471042,2952.7,2951.7,4.68938225]
[1720395015131,3.5405,2952.2,2951.7,4.68938225]
[1720395015351,1.3169677,2952.1,2951.7,4.68938225]
[1720395015559,1.3169677,2952.1,2951.1,4.68938225]
[1720395015859,3.5405,2952.0,2951.1,5.38962048]
[1720395016062,3.5405,2951.8,2951.1,4.68938225]
[1720395016224,1.3169677,2951.7,2951.1,4.68938225]
[1720395016763,1.31687004,2951.7,2951.1,4.68938225]
[1720395017859,3.8806,2951.6,2951.1,4.68938225]
[1720395018061,1.31687004,2951.5,2951.1,4.68938225]
[1720395018365,3.8806,2951.3,2950.5,4.68938225]
[1720395018519,3.8806,2951.3,2950.1,4.68938225]
[1720395018520,1.31687004,2951.2,2950.1,4.68938225]
[1720395018718,1.31687004,2951.2,2950.2,0.70023823]
[1720395018951,3.78452791,2951.2,2950.1,4.68938225]
[1720395019169,2.46765787,2951.0,2950.1,4.68938225]
[1720395019370,1.31687004,2950.9,2950.1,4.68938225]
[1720395019523,1.31687004,2951.0,2950.1,4.68938225]
[1720395020021,1.3156429,2951.0,2950.1,4.68938225]
[1720395020223,1.3156429,2951.0,2950.2,0.70023823]
[1720395020447,1.3156429,2951.0,2950.4,2.313]
[1720395020635,3.8806,2951.3,2950.4,2.313]
[1720395020636,1.3156429,2951.2,2950.4,2.313]
[1720395020842,1.3156429,2951.2,2950.5,0.55]
[1720395021168,1.3156429,2951.2,2950.3,0.55]
[1720395021325,1.3156429,2951.2,2950.3,1.14396205]
[1720395021667,5.84459669,2951.4,2950.4,2.313]
[1720395021668,3.38,2951.4,2950.4,2.313]
[1720395021960,3.38,2951.4,2950.5,0.57006553]
[1720395022161,1.3152966,2951.3,2950.5,0.57006553]
[1720395022477,3.38,2951.4,2950.5,0.57006553]
[1720395022774,3.38,2951.4,2950.6,0.28830655]
[1720395022955,3.38,2951.4,2950.5,0.57006553]
[1720395022956,3.38,2951.4,2950.7,0.55]
[1720395023124,3.7675,2951.2,2950.1,4.68938225]
[1720395023557,1.31456229,2951.1,2950.1,4.68938225]
[1720395024872,1.31454401,2951.1,2950.1,4.68938225]
[1720395025052,1.31454401,2951.1,2950.2,0.55]
[1720395025224,1.31454401,2951.1,2950.2,1.07393823]
[1720395026401,1.31454898,2951.1,2950.2,1.07393823]
[1720395026900,3.7675,2951.2,2950.3,2.33247885]
[1720395027105,3.7675,2951.2,2950.4,0.55]
[1720395027594,1.31452297,2951.1,2950.4,0.55]
[1720395028058,1.31452297,2951.1,2950.3,2.313]
[1720395028258,1.31452297,2951.1,2950.1,4.68938225]
[1720395028967,1.9589968,2951.1,2950.1,4.68938225]
[1720395029463,0.64446157,2951.0,2950.2,0.55]
[1720395029678,0.64446157,2950.9,2950.1,4.68938225]
[1720395029897,0.64446157,2950.9,2949.4,3.9421]
[1720395029898,0.64446157,2950.8,2949.8,4.68938225]
[1720395030101,0.64446157,2950.7,2949.9,0.55]
[1720395030302,0.64446157,2950.6,2949.9,0.55]
[1720395030515,0.64446157,2950.5,2949.9,2.26141822]
[1720395030719,0.64446157,2950.4,2949.9,2.26141822]
[1720395031003,1.66929349,2950.9,2949.9,2.26141822]
[1720395031004,0.64446157,2950.3,2949.9,2.26141822]
[1720395031219,1.31449936,2950.8,2949.9,2.26141822]
[1720395031396,0.35479413,2950.9,2949.9,0.55]
[1720395032315,0.64445449,2950.8,2949.9,0.55]
[1720395032510,0.64445449,2950.8,2949.8,4.68938225]
[1720395032511,3.77,2950.7,2949.8,4.68938225]
[1720395032806,1.95829525,2950.6,2949.8,4.68938225]
[1720395032977,3.77,2950.7,2949.8,4.68938225]
[1720395033180,4.95817938,2950.6,2949.8,4.68938225]
[1720395033376,1.95817938,2950.5,2949.8,4.68938225]
[1720395034711,3.38,2950.4,2949.1,4.68938225]
[1720395034912,3.38,2950.0,2949.1,4.68938225]
[1720395035207,0.64424614,2949.9,2949.1,4.68938225]
[1720395035421,0.64424614,2949.8,2949.1,4.68938225]
[1720395035718,4.31389094,2950.2,2949.1,4.68938225]
[1720395035719,0.64424614,2949.7,2949.1,4.68938225]
[1720395035883,3.0,2950.2,2949.1,4.68938225]
[1720395036085,1.95830228,2950.1,2949.1,4.68938225]
[1720395036502,2.64433225,2950.0,2949.1,4.68938225]
[1720395036707,0.64433225,2949.9,2949.1,4.68938225]
[1720395037108,0.64433225,2949.9,2949.2,0.55]
[1720395037285,2.0,2950.0,2949.2,0.61781535]
[1720395037617,2.0,2950.0,2949.2,0.55]
[1720395038123,3.5214,2950.3,2949.4,3.8055]
[1720395038124,3.38,2950.3,2949.4,3.8055]
[1720395038325,3.38,2950.3,2949.5,1.16185]
[1720395040179,3.38,2950.3,2949.6,0.06780479]
[1720395040408,3.38,2950.3,2949.7,0.55]
[1720395040830,3.38,2950.3,2949.6,0.55]
[1720395041716,3.38,2950.3,2949.6,0.61779765]
[1720395042657,3.38,2950.3,2949.6,0.55]
[1720395043622,3.38,2950.3,2949.5,0.61185]
[1720395043826,3.38,2950.3,2949.4,4.68938225]
[1720395044522,3.6382,2950.2,2949.4,4.68938225]
[1720395045036,0.6443536,2950.1,2949.4,4.68938225]
[1720395045563,3.0,2950.1,2949.4,4.68938225]
[1720395046251,0.64431841,2950.0,2949.4,4.68938225]
[1720395046558,3.0,2950.1,2949.4,4.68938225]
[1720395047349,3.0,2950.1,2949.4,8.55408225]
[1720395047643,3.0,2950.2,2949.4,8.55408225]
[1720395048970,3.5761,2950.1,2948.5,8.23628225]
[1720395049147,2.01,2949.8,2948.5,8.23628225]
[1720395049459,4.22034015,2949.7,2948.5,9.05991048]
[1720395049660,3.5761,2949.7,2948.5,5.51301048]
[1720395049826,0.64424587,2949.6,2948.5,5.51301048]
[1720395050450,3.64424587,2949.6,2948.5,5.51301048]
[1720395050656,3.0,2949.6,2948.5,5.51301048]
[1720395051948,3.0,2949.6,2948.6,0.55]
[1720395053490,3.0,2949.6,2948.6,1.15630105]
[1720395055362,3.0,2949.6,2948.6,0.55]
[1720395058674,0.70833992,2949.5,2948.6,0.55]
[1720395059007,0.64480151,2949.4,2948.6,0.55]
[1720395061214,0.06353841,2949.5,2948.9,2.313]
[1720395061413,3.5534,2950.0,2949.0,0.55]
[1720395061598,0.64487391,2949.9,2949.0,0.8363]
[1720395062312,0.64487391,2949.9,2949.0,0.55]
[1720395062313,0.70841232,2949.9,2949.0,0.55]
[1720395062513,0.70841232,2949.9,2948.8,0.55]
[1720395062713,0.64487391,2949.8,2948.8,0.55]
[1720395063331,0.64487391,2949.7,2948.8,0.55]
[1720395063630,1.37865593,2949.9,2948.7,0.55]
[1720395063631,4.24637391,2949.6,2948.7,0.55]
[1720395063828,4.24637391,2949.6,2948.5,4.68938225]
[1720395063829,1.96014187,2949.5,2948.6,0.55]
[1720395063977,1.96014187,2949.5,2948.7,0.52393823]
[1720395063978,0.64487391,2949.5,2948.7,0.52393823]
[1720395064179,3.0,2949.8,2948.8,4.1647]
[1720395064379,1.96037731,2949.7,2948.8,0.55]
[1720395064614,2.31519566,2949.7,2948.6,0.55]
[1720395064818,1.96037731,2949.6,2948.7,0.52393823]
[1720395065022,0.35481835,2949.7,2948.8,0.55]
[1720395065321,0.64504739,2949.6,2948.8,0.55]
[1720395065615,3.6446,2949.5,2948.8,0.55]
[1720395065815,0.64504739,2949.4,2948.6,0.55]
[1720395065984,0.64504739,2949.4,2948.7,0.52834436]
[1720395066179,0.64504739,2949.4,2948.8,0.55]
[1720395067727,0.64473366,2949.3,2948.8,0.55]
[1720395068016,0.64473366,2949.2,2948.8,0.55]
[1720395068223,0.64478302,2949.1,2948.9,3.7455]
[1720395068425,0.35481835,2949.7,2949.0,1.21763139]
[1720395068600,0.64475091,2949.6,2949.0,1.28544305]
[1720395068936,0.64475091,2949.6,2949.1,0.5030943]
[1720395069084,0.64475091,2949.6,2949.2,0.55]
[1720395069289,0.64475091,2949.6,2949.0,1.21763139]
[1720395070129,0.64475091,2949.6,2949.0,1.23939079]
[1720395070334,0.64475091,2949.6,2949.1,0.06781028]
[1720395070545,0.64475091,2949.6,2949.2,0.55]
[1720395070752,0.35481835,2949.7,2949.2,0.55]
[1720395070911,0.64446692,2949.6,2949.2,0.55]
[1720395071108,0.35481835,2949.7,2949.2,0.55]
[1720395071443,0.64448448,2949.6,2949.2,0.55]
[1720395071952,0.64448448,2949.6,2949.3,3.8236]
[1720395072155,0.35481835,2949.7,2949.4,1.21866]
[1720395072951,0.35481835,2949.7,2949.4,1.28645939]
[1720395073642,0.64474729,2949.6,2949.4,1.21866]
[1720395074049,0.64473133,2949.5,2949.4,1.21866]
[1720395074218,0.64473133,2949.6,2949.0,4.38763139]
[1720395074425,0.35481835,2949.7,2948.8,4.68938225]
[1720395074426,0.64473133,2949.5,2948.8,4.68938225]
[1720395074751,0.64473133,2949.4,2948.8,4.68938225]
[1720395074907,0.35481835,2949.7,2948.8,4.68938225]
[1720395074908,0.64473133,2949.3,2948.8,4.68938225]
[1720395075110,0.64473133,2949.2,2948.8,4.68938225]
[1720395075404,0.64473133,2949.1,2948.7,2.313]
[1720395075606,0.35481835,2949.7,2948.2,8.46068225]
[1720395075607,0.64473133,2949.0,2948.2,8.46068225]
[1720395075829,0.64473133,2948.9,2948.3,2.03354822]
[1720395076005,0.64473133,2948.8,2948.2,8.46068225]
[1720395076202,0.64473133,2948.7,2948.2,8.46068225]
[1720395076442,0.64473133,2948.6,2948.2,8.46068225]
[1720395076646,0.64473133,2948.5,2948.2,8.46068225]
[1720395076878,1.31487134,2949.1,2948.2,8.46068225]
[1720395077042,3.8287,2949.6,2948.3,0.91389767]
[1720395077247,7.42369116,2949.5,2948.4,2.313]
[1720395077561,1.95946585,2949.4,2948.5,0.55]
[1720395078575,1.95946585,2949.4,2948.4,2.863]
[1720395078736,1.95946585,2949.4,2948.5,0.37090682]
[1720395078936,1.95946585,2949.4,2948.6,0.55]
[1720395079331,1.95946585,2949.4,2948.5,0.55]
[1720395079531,4.42369116,2949.4,2948.5,0.55]
[1720395079731,1.95946585,2949.3,2948.5,0.55]
[1720395079967,2.314289,2949.3,2948.5,0.55]
[1720395080170,0.64475012,2949.2,2948.5,0.55]
[1720395080476,1.95980973,2949.2,2948.5,0.92090682]
[1720395080633,0.64487052,2949.1,2948.5,0.92090682]
[1720395080829,1.31491268,2949.2,2948.5,0.92090682]
[1720395081031,0.64485685,2949.1,2948.5,0.92090682]
[1720395081334,0.64485685,2949.0,2948.6,0.33017329]
[1720395081564,0.64485685,2948.9,2948.7,0.55]
[1720395081767,0.64485685,2948.8,2948.7,0.55]
[1720395082068,0.64485544,2948.8,2948.7,0.55]
[1720395082272,0.64485544,2949.2,2948.7,0.55]
[1720395082436,0.64485544,2949.1,2948.7,0.55]
[1720395082635,0.64485544,2949.0,2948.7,0.55]
[1720395082936,0.64485544,2948.9,2948.7,0.55]
[1720395083132,0.64485544,2948.8,2948.7,4.4459]
[1720395083333,0.35482315,2949.3,2948.7,7.57680733]
[1720395083529,0.64497216,2949.2,2949.1,2.313]
[1720395083733,12.95510876,2950.5,2949.1,6.5678]
[1720395083734,3.7815206,2950.2,2949.1,6.5678]
[1720395083964,0.35480818,2949.7,2949.1,6.0178]
[1720395084169,0.64497566,2949.6,2949.2,0.55]
[1720395084378,0.64497566,2949.6,2949.3,0.65678]
[1720395084586,0.64497566,2949.5,2949.4,0.55]
[1720395084792,1.96034315,2950.2,2949.4,0.55]
[1720395084949,0.64497566,2950.1,2949.4,0.55]
[1720395085148,0.64497566,2950.0,2949.4,0.55]
[1720395085348,0.64497566,2949.9,2949.4,0.55]
[1720395085606,1.31536749,2950.2,2949.4,0.55]
[1720395085607,0.64497566,2949.8,2949.4,0.55]
[1720395085783,0.64497566,2949.7,2949.4,0.55]
[1720395085959,0.64497566,2949.6,2949.4,0.55]
[1720395086161,0.64497566,2949.5,2949.4,0.55]
[1720395086890,0.64516994,2949.5,2949.4,0.55]
[1720395087476,1.96100444,2950.3,2949.4,0.55]
[1720395087681,0.64516994,2950.2,2949.4,0.55]
[1720395087988,0.64516994,2950.1,2949.1,2.313]
[1720395088181,4.42834202,2950.1,2949.1,2.313]
[1720395088494,2.46733758,2949.9,2948.8,3.5535]
[1720395088656,1.96100444,2949.8,2948.8,3.5535]
[1720395088855,1.96100444,2949.8,2948.7,7.00238225]
[1720395089085,2.46733758,2949.7,2948.7,7.00238225]
[1720395089298,1.96100444,2949.6,2948.7,7.70262048]
[1720395089888,2.97808093,2950.0,2948.7,7.70262048]
[1720395089889,0.64516994,2949.5,2948.7,7.70262048]
[1720395090188,0.64528359,2949.4,2948.7,7.70262048]
[1720395090401,0.64528359,2949.3,2948.7,7.70262048]
[1720395090686,0.64531392,2949.2,2948.8,0.55]
[1720395090852,0.64531392,2949.1,2948.9,0.82526205]
[1720395091052,1.31593757,2949.6,2949.0,0.55]
[1720395091283,0.64531861,2949.6,2949.0,0.55]
[1720395091987,1.96125618,2949.6,2949.0,0.55]
[1720395093295,0.06353841,2950.0,2949.0,0.55]
[1720395093464,2.46889028,2949.7,2949.0,0.55]
[1720395093668,1.96134612,2949.6,2948.8,0.55]
[1720395093864,1.96134612,2949.6,2948.8,1.30523823]
[1720395094077,1.96134612,2949.6,2948.7,7.00238225]
[1720395094284,2.46889028,2949.4,2948.7,4.68938225]
[1720395094487,4.4302364,2949.3,2948.7,4.68938225]
[1720395094688,1.96134612,2949.2,2948.7,4.68938225]
[1720395095493,0.64534255,2949.1,2948.8,0.55]
[1720395095668,0.64534255,2949.0,2948.8,0.55]
[1720395096001,1.31600357,2949.3,2948.8,0.55]
[1720395096002,0.64534255,2948.9,2948.8,0.55]
[1720395096203,0.64534255,2949.2,2948.8,0.55]
[1720395096367,0.64534255,2949.1,2948.8,0.55]
[1720395096561,0.6453879,2949.0,2948.8,0.55]
[1720395096871,0.6453879,2948.9,2948.8,0.55]
[1720395097076,0.6453879,2949.4,2948.8,0.55]
[1720395097461,0.6453879,2949.3,2948.8,0.55]
[1720395097660,1.6710079,2949.5,2948.9,0.94783205]
[1720395097661,0.6453879,2949.2,2948.9,0.94783205]
[1720395097901,0.6453879,2949.1,2949.0,0.55]
[1720395098103,0.6453879,2949.4,2949.0,0.55]
[1720395098307,0.6453879,2949.3,2949.0,0.55]
[1720395098460,0.6453879,2949.2,2948.8,0.55]
[1720395098666,2.82426256,2949.5,2948.8,0.55]
[1720395098667,0.6453879,2949.1,2948.8,0.55]
[1720395098894,0.6453879,2949.0,2948.8,0.55]
[1720395099094,0.6453879,2948.9,2948.8,1.07393823]
[1720395099302,1.9615126,2949.4,2948.8,1.07393823]
[1720395099511,0.6453879,2949.3,2948.8,1.07393823]
[1720395099714,0.6453879,2949.4,2948.8,1.07393823]
[1720395099937,0.64570709,2949.3,2948.8,1.07393823]
[1720395100110,0.3548832,2949.5,2948.8,1.07393823]
[1720395100280,1.6716221,2949.5,2948.9,0.57633205]
[1720395100661,0.64572716,2949.4,2949.0,4.1685]
[1720395101379,0.64571613,2949.3,2949.0,4.1685]
[1720395101619,0.64571613,2949.2,2949.0,4.1685]
[1720395101921,1.67169538,2949.5,2949.0,4.1685]
[1720395101922,0.64571613,2949.1,2949.0,4.1685]
[1720395102124,0.64571613,2949.4,2949.0,4.1685]
[1720395102281,0.64571613,2949.3,2949.0,0.55]
[1720395102624,0.64571613,2949.2,2948.8,0.55]
[1720395102918,0.64571613,2949.1,2948.8,0.55]
[1720395103152,0.3548832,2949.5,2948.8,0.55]
[1720395103281,0.64589563,2949.4,2948.8,0.55]
[1720395103481,0.64589563,2949.3,2948.8,0.55]
[1720395103722,0.64589563,2949.2,2948.8,1.53137405]
[1720395103893,0.64589563,2949.1,2948.8,1.53137405]
[1720395104089,0.64589563,2949.0,2948.8,1.53137405]
[1720395104328,0.64589563,2948.9,2948.8,0.61397285]
[1720395104633,0.3548832,2949.5,2948.8,4.18217285]
[1720395104781,0.64602,2949.4,2948.8,4.18217285]
[1720395105317,0.64602,2949.4,2948.8,4.1182]
[1720395105619,0.64602,2949.4,2948.9,0.4796286]
[1720395105776,0.64602,2949.4,2949.0,0.61781005]
[1720395105977,0.64602,2949.4,2949.0,0.55]
[1720395106318,0.3548832,2949.5,2949.0,0.55]
[1720395106516,0.64574836,2949.4,2949.0,0.55]
[1720395109479,0.3548832,2949.5,2949.0,0.55]
[1720395109690,0.64556341,2949.4,2949.0,0.55]
[1720395109897,0.3548832,2949.5,2949.0,0.55]
[1720395110121,0.3548832,2949.5,2949.0,4.4189]
[1720395110122,0.64558492,2949.4,2949.0,4.4189]
[1720395110414,0.64558492,2949.4,2949.1,0.44189]
[1720395110620,0.64558492,2949.4,2949.2,0.55]
[1720395112763,0.3548832,2949.5,2949.2,0.55]
[1720395113063,0.64592839,2949.4,2949.2,0.55]
[1720395116029,0.3548832,2949.5,2949.2,0.55]
[1720395116334,0.64611105,2949.4,2949.2,4.2344]
[1720395116536,0.64613806,2949.3,2949.2,0.97344]
[1720395116745,0.64613806,2949.3,2949.2,0.55]
[1720395117039,0.64613806,2949.4,2949.1,0.55]
[1720395117350,0.3548832,2949.5,2949.2,0.06780562]
[1720395117351,0.64613806,2949.3,2949.2,0.06780562]
[1720395117553,0.64613806,2949.4,2949.2,0.55]
[1720395117762,0.64613806,2949.4,2949.3,0.55]
[1720395119432,0.64620445,2949.4,2949.3,0.55]
[1720395119862,0.64624874,2949.4,2949.3,0.55]
[1720395121871,0.64618475,2949.4,2949.3,0.55]
[1720395122337,0.64618475,2949.6,2949.3,0.55]
[1720395122540,0.64618475,2949.5,2949.3,0.55]
[1720395122779,0.64618475,2949.4,2949.3,0.55]
[1720395122979,4.43767103,2949.7,2949.3,0.55]
[1720395123132,1.96396997,2949.6,2949.3,0.55]
[1720395125144,3.5082,2949.9,2949.3,0.55]
[1720395125145,0.64642712,2949.5,2949.3,0.55]
[1720395125349,0.64641571,2949.4,2949.3,0.55]
[1720395125912,0.64641571,2949.4,2949.3,4.0802]
[1720395126203,0.64641571,2949.7,2949.3,4.48822]
[1720395126412,0.64641571,2949.6,2949.3,4.48822]
[1720395126609,0.64641571,2949.5,2949.3,4.48822]
[1720395126905,0.64641571,2949.4,2949.3,4.48822]
[1720395127465,0.64641571,2949.9,2949.3,4.82852]
[1720395127673,0.64641571,2949.8,2949.3,4.82852]
[1720395127978,0.64641571,2949.7,2949.3,4.48822]
[1720395128307,0.06353841,2950.0,2949.0,3.8549]
[1720395128511,2.476116,2949.8,2949.0,3.8549]
[1720395128685,0.06353841,2950.0,2949.0,3.8549]
[1720395129005,3.12254741,2949.7,2949.0,3.8549]
[1720395129298,0.06353841,2950.0,2949.0,4.24039]
[1720395129299,1.96462724,2949.6,2949.0,4.24039]
[1720395129524,0.64640281,2949.5,2949.0,4.24039]
[1720395129704,0.64640281,2949.4,2949.1,0.55]
[1720395129872,0.64642828,2949.3,2949.1,0.55]
[1720395130074,0.64642828,2949.2,2949.1,0.55]
[1720395130273,0.64642828,2949.2,2949.1,1.029039]
[1720395130689,1.96474054,2949.6,2949.1,0.55]
[1720395130908,0.64642828,2949.5,2949.1,0.55]
[1720395131115,1.96474054,2949.5,2949.1,0.55]
[1720395131530,0.64647393,2949.4,2949.1,0.55]
[1720395131695,0.06353841,2950.0,2949.1,0.55]
[1720395131696,0.64647393,2949.3,2949.1,0.55]
[1720395131898,0.64647393,2949.2,2949.1,0.55]
[1720395132110,0.64647393,2949.4,2949.1,0.55]
[1720395132312,0.64647393,2949.3,2949.1,0.55]
[1720395132586,1.31837728,2949.6,2949.3,3.7092]
[1720395132791,0.64651439,2949.5,2949.4,0.55]
[1720395132987,0.64651439,2949.6,2949.4,0.55]
[1720395133187,0.64651439,2949.5,2949.4,0.55]
[1720395133422,1.31837728,2949.7,2949.4,0.55]
[1720395133423,1.00148977,2949.6,2949.4,0.55]
[1720395133626,0.64651439,2949.5,2949.4,0.55]
[1720395134616,0.35497538,2949.6,2949.4,0.55]
[1720395134815,0.64654079,2949.5,2949.4,0.55]
[1720395137906,0.64658004,2949.5,2949.4,0.55]
[1720395138332,0.64657657,2949.5,2949.4,0.55]
[1720395138533,0.64657657,2949.5,2949.4,4.1657]
[1720395138736,0.64657657,2949.5,2949.4,4.58227]
[1720395139459,0.64657657,2949.5,2948.9,3.6157]
[1720395140232,0.64657657,2949.4,2948.9,3.6157]
[1720395140448,1.67360691,2949.6,2948.9,3.6157]
[1720395140449,0.64657657,2949.3,2948.9,3.6157]
[1720395140637,0.64657657,2949.2,2948.9,3.6157]
[1720395140833,0.64657657,2949.1,2949.0,0.06781287]
[1720395141033,1.67360691,2949.6,2949.0,0.36835129]
[1720395141034,0.35497538,2949.6,2949.0,0.36835129]
[1720395141249,0.64659594,2949.1,2949.0,0.36835129]
[1720395141424,0.64660346,2949.1,2949.0,1.25865129]
[1720395141622,0.64660346,2949.5,2949.0,1.25865129]
[1720395141846,0.64660346,2949.5,2949.1,0.55]
[1720395142036,0.64660346,2949.5,2949.2,0.18086513]
[1720395142357,0.64660346,2949.5,2949.3,0.55]
[1720395143455,0.64660346,2949.5,2949.1,0.55]
[1720395144448,0.35497538,2949.6,2949.1,0.55]
[1720395144449,0.64671086,2949.4,2949.1,0.55]
[1720395144657,0.64671086,2949.3,2949.1,0.55]
[1720395144830,0.64671086,2949.2,2949.1,1.03743513]
[1720395145026,0.64671086,2949.5,2949.1,1.03743513]
[1720395145530,0.64671086,2949.5,2949.1,1.10523926]
[1720395146471,0.64671086,2949.5,2949.1,1.03743513]
[1720395147336,0.64671086,2949.5,2949.2,0.06780185]
[1720395147562,0.35497538,2949.6,2949.4,3.625]
[1720395147764,0.35497538,2949.6,2949.5,0.55]
[1720395147931,1.00172038,2949.6,2949.5,0.55]
[1720395148131,1.00181182,2949.6,2949.5,0.55]
[1720395149084,0.64683644,2949.6,2949.5,2.863]
[1720395149369,2.92925558,2950.8,2949.5,2.863]
[1720395149370,2.48030533,2951.0,2949.6,3.9203]
[1720395149586,0.64681392,2950.9,2949.8,0.3403]
[1720395149731,0.64681392,2950.8,2950.1,0.3403]
[1720395149927,0.64681392,2950.7,2950.2,0.06777662]
[1720395150142,0.64681392,2950.6,2950.2,0.61777662]
[1720395150352,0.64681392,2950.5,2950.3,0.06777762]
[1720395150529,0.35487865,2951.2,2950.4,0.55]
[1720395150730,2.47709132,2951.0,2950.4,0.55]
[1720395150944,2.62398009,2950.9,2950.4,0.55]
[1720395151149,2.62398009,2950.8,2950.4,0.55]
[1720395151336,0.14688877,2950.7,2950.4,0.55]
[1720395151540,2.62398009,2950.7,2950.4,0.55]
[1720395151745,0.40928678,2950.6,2950.4,0.55]
[1720395151945,0.14688877,2950.5,2950.4,0.55]
[1720395153172,2.62398009,2950.5,2949.9,4.68938225]
[1720395153388,2.62398009,2950.4,2949.6,16.56418225]
[1720395153692,2.47709132,2950.2,2949.6,4.68938225]
[1720395153849,2.47500467,2950.2,2949.6,4.68938225]
[1720395154055,2.47500467,2950.0,2949.6,4.68938225]
[1720395154246,0.14709106,2949.9,2949.6,4.68938225]
[1720395154455,0.14709106,2949.8,2949.6,4.68938225]
[1720395154661,0.14709106,2949.7,2949.1,0.06780827]
[1720395154981,0.14709106,2949.6,2949.1,1.66319905]
[1720395155188,0.14709106,2949.5,2949.0,16.56418225]
[1720395155481,0.14709106,2949.4,2949.1,0.06781084]
[1720395155676,0.14709106,2949.3,2948.9,0.06780988]
[1720395155835,0.14709106,2949.2,2948.9,0.06780988]
[1720395156041,0.14709106,2949.1,2949.0,0.93590099]
[1720395157053,0.14712482,2949.1,2949.0,0.93590099]
[1720395157269,0.14712482,2949.9,2949.0,0.93590099]
[1720395157466,2.47501559,2950.0,2949.0,0.93590099]
[1720395157803,0.14712075,2949.9,2949.1,0.06781082]
[1720395157947,0.14712075,2949.9,2949.2,0.55]
[1720395158149,0.14712075,2949.8,2949.3,0.06780344]
[1720395158351,0.14712075,2949.7,2949.4,0.55]
[1720395158654,0.14708616,2949.6,2949.4,0.55]
[1720395158879,0.14708616,2949.5,2949.4,0.55]
[1720395159051,0.14708616,2950.0,2949.4,0.55]
[1720395159388,3.0,2950.3,2949.5,0.06779884]
[1720395159389,0.14708616,2949.9,2949.5,0.06779884]
[1720395159553,5.47518579,2950.3,2949.6,0.55]
[1720395159554,0.14708616,2949.8,2949.6,0.55]
[1720395159758,0.14708616,2949.7,2949.6,0.55]
[1720395159948,0.14708616,2950.2,2949.6,0.55]
[1720395160261,0.14705241,2950.1,2949.6,0.55]
[1720395160461,0.14705241,2950.0,2949.6,0.55]
[1720395160774,0.14705241,2949.9,2949.6,0.55]
[1720395160963,0.14705241,2949.8,2949.6,0.55]
[1720395161162,0.14705241,2949.7,2949.6,0.55]
[1720395161580,2.62254228,2950.1,2949.1,4.68938225]
[1720395161763,2.62254228,2950.1,2949.2,0.55]
[1720395161764,0.40930664,2950.0,2949.2,0.55]
[1720395161966,0.14705241,2949.9,2949.2,0.55]
[1720395162958,0.14705241,2949.8,2949.2,0.55]
[1720395163159,0.14705241,2949.7,2949.2,0.55]
[1720395163415,0.14705241,2949.6,2949.2,0.55]